bitfinex-derivatives/quotes_BTCF0:USTF0_20230106
["timestamp","ask_amount","ask_price","bid_price","bid_amount"]
[1673036258221,0.061,17032.0,17031.0,0.53010155]
[1673036259684,0.2,17034.0,17031.0,0.52010155]
[1673036259895,0.061,17032.0,17031.0,0.53010155]
[1673036261045,0.061,17032.0,17031.0,0.22940155]
[1673036262936,0.061,17032.0,17031.0,0.01]
[1673036265675,0.061,17032.0,17029.0,0.21940155]
[1673036265888,0.8933,17031.0,17029.0,0.21940155]
[1673036267041,1.265,17031.0,17029.0,0.007]
[1673036267360,0.2,17030.0,17029.0,0.007]
[1673036269148,0.214,17030.0,17028.0,0.82080155]
[1673036269348,0.2,17030.0,17028.0,0.82080155]
[1673036269559,0.334,17030.0,17028.0,0.82080155]
[1673036270516,0.134,17030.0,17028.0,0.82080155]
[1673036271460,0.136,17030.0,17028.0,0.82380155]
[1673036272512,0.136,17030.0,17028.0,0.6044]
[1673036272717,0.136,17030.0,17029.0,0.21940155]
[1673036272933,0.136,17030.0,17028.0,0.6044]
[1673036273568,0.136,17030.0,17029.0,0.21940155]
[1673036273771,0.136,17030.0,17028.0,0.6044]
[1673036274192,0.136,17030.0,17029.0,0.21940155]
[1673036274512,0.136,17030.0,17029.0,0.22240155]
[1673036274925,0.136,17030.0,17029.0,0.21940155]
[1673036275760,0.136,17030.0,17029.0,0.22240155]
[1673036276397,0.136,17030.0,17029.0,0.003]
[1673036276602,0.812,17029.0,17026.0,0.21940155]
[1673036276820,1.1127,17029.0,17026.0,0.21940155]
[1673036277662,1.1127,17029.0,17026.0,0.22340155]
[1673036277867,1.1597,17029.0,17028.0,0.21940155]
[1673036278078,0.5671,17029.0,17028.0,0.21940155]
[1673036278288,0.2664,17029.0,17028.0,0.21940155]
[1673036278711,0.3554,17029.0,17028.0,0.22240155]
[1673036278922,0.136,17029.0,17028.0,0.22240155]
[1673036280498,0.1,17030.0,17028.0,0.21940155]
[1673036280711,0.1,17030.0,17029.0,0.3007]
[1673036281550,0.236,17030.0,17029.0,0.3037]
[1673036281972,0.236,17030.0,17029.0,0.003]
[1673036282819,0.8286,17030.0,17029.0,0.003]
[1673036283650,0.90919845,17030.0,17029.0,0.003]
[1673036285133,0.8286,17030.0,17029.0,0.003]
[1673036286072,0.90919845,17030.0,17025.0,0.3007]
[1673036286293,0.8933,17028.0,17025.0,0.3007]
[1673036286600,0.2,17027.0,17025.0,0.3007]
[1673036287018,0.7926,17027.0,17025.0,0.3007]
[1673036287657,0.7926,17027.0,17025.0,0.3227]
[1673036287861,0.7926,17027.0,17025.0,0.3007]
[1673036288180,0.8016,17027.0,17025.0,0.3007]
[1673036289649,0.7926,17027.0,17025.0,0.3007]
[1673036289865,0.8286,17027.0,17025.0,0.3007]
[1673036290177,0.9016,17027.0,17025.0,0.3007]
[1673036291229,0.9016,17027.0,17024.0,0.21940155]
[1673036291538,0.5926,17025.0,17024.0,0.21940155]
[1673036291954,0.7926,17025.0,17022.0,0.21940155]
[1673036292594,0.1,17024.0,17022.0,0.21940155]
[1673036293534,1.0293,17024.0,17022.0,0.21940155]
[1673036294382,0.1,17024.0,17022.0,0.52010155]
[1673036294592,0.136,17024.0,17022.0,0.52010155]
[1673036295749,0.234,17024.0,17022.0,0.52010155]
[1673036297010,0.234,17024.0,17022.0,0.82080155]
[1673036310148,0.1,17024.0,17022.0,0.82080155]
[1673036310367,0.235,17024.0,17022.0,0.82080155]
[1673036315399,0.235,17024.0,17023.0,0.21940155]
[1673036316238,0.1,17024.0,17023.0,0.21940155]
[1673036316558,0.236,17024.0,17023.0,0.21940155]
[1673036317612,0.136,17024.0,17023.0,0.21940155]
[1673036317924,0.136,17024.0,17023.0,0.31940155]
[1673036318548,0.136,17024.0,17023.0,0.21940155]
[1673036318759,0.136,17024.0,17023.0,0.31940155]
[1673036318974,0.136,17024.0,17023.0,0.21940155]
[1673036319808,0.2,17025.0,17023.0,0.21940155]
[1673036320024,0.136,17024.0,17023.0,0.21940155]
[1673036320234,0.136,17024.0,17023.0,0.52010155]
[1673036321912,0.2,17025.0,17023.0,0.52010155]
[1673036322127,0.136,17024.0,17023.0,0.52010155]
[1673036333056,0.136,17024.0,17023.0,0.52110155]
[1673036334311,0.136,17024.0,17023.0,0.3017]
[1673036334525,0.136,17024.0,17023.0,0.52110155]
[1673036335992,0.136,17024.0,17023.0,0.52092875]
[1673036345887,0.136,17024.0,17023.0,0.3015272]
[1673036348087,0.136,17024.0,17023.0,0.52092875]
[1673036351980,0.136,17024.0,17023.0,0.3015272]
[1673036359760,0.136,17024.0,17023.0,0.6015272]
[1673036359970,0.1,17029.0,17023.0,0.6015272]
[1673036360181,0.6281,17030.0,17028.0,0.82080155]
[1673036360394,0.2,17032.0,17028.0,0.82080155]
[1673036360602,0.2,17032.0,17031.0,0.3007]
[1673036361652,0.242,17032.0,17031.0,0.6134]
[1673036362805,0.243,17032.0,17031.0,0.6134]
[1673036363011,0.8356,17032.0,17031.0,0.6134]
[1673036363226,0.8356,17032.0,17031.0,0.3127]
[1673036363853,1.1363,17032.0,17028.0,0.21940155]
[1673036364074,0.8933,17030.0,17026.0,0.52010155]
[1673036364388,1.194,17030.0,17026.0,0.52010155]
[1673036364600,0.3007,17028.0,17026.0,0.52010155]
[1673036364815,0.8933,17028.0,17024.0,0.52010155]
[1673036365231,0.7926,17027.0,17024.0,0.52010155]
[1673036365963,0.7926,17027.0,17026.0,0.009]
[1673036366174,0.7926,17027.0,17024.0,0.52010155]
[1673036366394,0.8466,17027.0,17024.0,0.53110155]
[1673036366807,0.7926,17027.0,17026.0,0.011]
[1673036367020,0.8456,17027.0,17026.0,0.011]
[1673036367439,0.253,17027.0,17026.0,0.23040155]
[1673036367654,0.254,17027.0,17026.0,0.21940155]
[1673036368810,0.253,17027.0,17026.0,0.53110155]
[1673036369646,0.2,17027.0,17026.0,0.52010155]
[1673036369857,0.254,17027.0,17026.0,0.53110155]
[1673036371956,0.2,17027.0,17026.0,0.53110155]
[1673036372171,0.254,17027.0,17026.0,0.53110155]
[1673036374801,0.254,17027.0,17026.0,0.23040155]
[1673036375214,0.8466,17027.0,17026.0,0.23040155]
[1673036375633,0.812,17026.0,17024.0,0.21940155]
[1673036376474,1.1127,17026.0,17024.0,0.21940155]
[1673036377425,1.1807,17026.0,17024.0,0.22940155]
[1673036378155,1.1807,17026.0,17024.0,0.21940155]
[1673036378367,0.88,17026.0,17024.0,0.22940155]
[1673036378787,0.812,17026.0,17024.0,0.21940155]
[1673036378996,0.88,17026.0,17024.0,0.22940155]
[1673036380580,1.1807,17026.0,17024.0,0.22940155]
[1673036381208,1.1127,17026.0,17024.0,0.21940155]
[1673036381412,1.1807,17026.0,17024.0,0.22940155]
[1673036381843,1.4814,17026.0,17024.0,0.01]
[1673036382152,1.4814,17026.0,17023.0,0.21940155]
[1673036382363,0.8933,17024.0,17023.0,0.21940155]
[1673036383514,0.9703,17024.0,17023.0,0.22840155]
[1673036387507,0.3777,17024.0,17023.0,0.22840155]
[1673036387720,0.9703,17024.0,17023.0,0.22840155]
[1673036387932,0.3777,17024.0,17023.0,0.22840155]
[1673036388555,0.9703,17024.0,17023.0,0.22840155]
[1673036389507,0.3777,17024.0,17023.0,0.22840155]
[1673036389713,0.9703,17024.0,17023.0,0.22840155]
[1673036392665,0.9703,17024.0,17023.0,0.009]
[1673036394760,0.9703,17024.0,17023.0,0.22840155]
[1673036396447,0.9703,17024.0,17023.0,0.009]
[1673036402226,0.3777,17024.0,17023.0,0.009]
[1673036402454,0.9703,17024.0,17023.0,0.009]
[1673036403611,0.3777,17024.0,17023.0,0.009]
[1673036404131,0.9703,17024.0,17023.0,0.009]
[1673036412434,0.9703,17024.0,17023.0,0.22840155]
[1673036421169,0.1,17023.0,17019.0,0.2]
[1673036422630,0.7476,17023.0,17019.0,0.205]
[1673036423264,0.7476,17023.0,17019.0,0.005]
[1673036423683,0.7476,17023.0,17019.0,0.105]
[1673036423894,0.7476,17023.0,17019.0,0.005]
[1673036424102,0.3007,17022.0,17019.0,0.005]
[1673036424527,0.3007,17022.0,17019.0,0.105]
[1673036425584,0.3557,17022.0,17019.0,0.105]
[1673036430198,0.055,17022.0,17020.0,0.3007]
[1673036431459,0.094,17022.0,17020.0,0.3087]
[1673036435247,0.3947,17022.0,17020.0,0.3087]
[1673036439343,0.3947,17022.0,17020.0,0.008]
[1673036444285,1.288,17022.0,17016.0,0.3157]
[1673036444501,0.3007,17020.0,17016.0,0.2]
[1673036445025,0.2,17019.0,17016.0,0.2]
[1673036445222,0.2,17019.0,17015.0,0.3007]
[1673036445437,0.3007,17018.0,17016.0,0.078]
[1673036445866,0.8933,17018.0,17016.0,0.078]
[1673036446184,1.194,17018.0,17016.0,0.078]
[1673036446596,1.194,17018.0,17016.0,0.072]
[1673036447010,1.194,17018.0,17013.0,0.4115]
[1673036447228,0.9473,17018.0,17016.0,0.006]
[1673036447445,0.8933,17018.0,17013.0,0.1]
[1673036447651,1.0033,17018.0,17016.0,0.007]
[1673036447982,0.1,17017.0,17013.0,0.1]
[1673036448189,1.194,17016.0,17012.0,0.3007]
[1673036449030,1.194,17016.0,17012.0,0.5007]
[1673036449233,1.194,17016.0,17012.0,0.3007]
[1673036449447,0.3007,17014.0,17012.0,0.3007]
[1673036449863,0.8933,17016.0,17012.0,0.3007]
[1673036450073,0.9473,17016.0,17012.0,0.3067]
[1673036450391,0.8933,17016.0,17012.0,0.3007]
[1673036450712,0.054,17014.0,17013.0,0.2]
[1673036450923,0.8933,17016.0,17013.0,0.2]
[1673036451235,0.9473,17016.0,17013.0,0.2]
[1673036451655,0.9473,17016.0,17012.0,0.5067]
[1673036452922,1.0033,17016.0,17013.0,0.007]
[1673036453230,1.0033,17016.0,17012.0,0.5007]
[1673036453231,0.8933,17016.0,17012.0,0.5007]
[1673036453548,0.9473,17016.0,17012.0,0.5067]
[1673036453761,0.8933,17016.0,17012.0,0.5007]
[1673036453968,1.0043,17016.0,17013.0,0.007]
[1673036454385,1.0033,17016.0,17012.0,0.3077]
[1673036454705,1.304,17016.0,17012.0,0.3077]
[1673036454920,0.8933,17014.0,17013.0,0.007]
[1673036456062,0.8933,17014.0,17012.0,0.007]
[1673036456490,0.8933,17014.0,17010.0,0.2]
[1673036456700,1.0043,17014.0,17013.0,0.007]
[1673036457112,1.0043,17014.0,17012.0,0.007]
[1673036457319,1.305,17014.0,17012.0,0.007]
[1673036457535,1.194,17014.0,17009.0,0.8014]
[1673036457749,1.305,17014.0,17013.0,0.007]
[1673036459012,0.007,17013.0,17008.0,0.3238]
[1673036459226,0.5926,17011.0,17007.0,0.3007]
[1673036459752,0.5926,17011.0,17007.0,0.4007]
[1673036460174,0.8933,17010.0,17007.0,0.3077]
[1673036460379,1.194,17010.0,17007.0,0.007]
[1673036460906,0.5926,17008.0,17007.0,0.007]
[1673036461225,0.8933,17008.0,17007.0,0.007]
[1673036462063,0.8933,17008.0,17007.0,0.0034]
[1673036462273,0.0034,17007.0,17003.0,0.3007]
[1673036462479,0.5926,17005.0,17003.0,0.3007]
[1673036463846,0.122,17005.0,17003.0,0.3067]
[1673036464060,0.122,17005.0,17003.0,0.6074]
[1673036464904,0.0629,17005.0,17004.0,0.3]
[1673036465108,0.123,17005.0,17004.0,1.05]
[1673036465324,0.0639,17005.0,17004.0,1.05]
[1673036465637,0.2,17010.0,17004.0,1.05]
[1673036465843,0.2,17010.0,17008.0,0.3007]
[1673036466795,0.201,17010.0,17008.0,0.3007]
[1673036467319,0.201,17010.0,17006.0,0.3007]
[1673036467320,0.7936,17010.0,17006.0,0.3007]
[1673036468053,0.7926,17010.0,17006.0,0.3007]
[1673036468368,0.7936,17010.0,17008.0,0.074]
[1673036468575,0.7926,17010.0,17006.0,0.3007]
[1673036468785,0.7936,17010.0,17006.0,0.4417]
[1673036470050,0.201,17010.0,17006.0,0.4417]
[1673036470469,0.201,17010.0,17008.0,0.3007]
[1673036470683,0.201,17010.0,17008.0,0.6014]
[1673036471526,0.2,17010.0,17008.0,0.6014]
[1673036471739,0.2,17010.0,17008.0,0.6064]
[1673036471945,0.2,17012.0,17008.0,0.6064]
[1673036473094,0.2,17012.0,17008.0,0.6014]
[1673036473306,0.2,17012.0,17008.0,0.6064]
[1673036475415,0.2,17012.0,17010.0,0.3007]
[1673036475616,0.2,17012.0,17008.0,0.3057]
[1673036476250,0.215,17012.0,17010.0,0.009]
[1673036476771,0.5157,17012.0,17010.0,0.009]
[1673036477405,0.5007,17012.0,17008.0,0.3007]
[1673036477621,0.5007,17012.0,17008.0,0.3057]
[1673036478043,0.5157,17012.0,17010.0,0.009]
[1673036478453,0.5007,17012.0,17008.0,0.3057]
[1673036478773,0.5007,17012.0,17008.0,0.3007]
[1673036478985,0.5157,17012.0,17010.0,0.009]
[1673036479935,0.5007,17012.0,17008.0,0.3057]
[1673036480981,0.5157,17012.0,17010.0,0.009]
[1673036481193,0.5157,17012.0,17008.0,0.3007]
[1673036481409,0.5007,17012.0,17008.0,0.3057]
[1673036481828,0.5007,17012.0,17008.0,0.3007]
[1673036482142,0.5157,17012.0,17010.0,0.009]
[1673036482354,0.5007,17012.0,17008.0,0.3057]
[1673036483095,0.2344,17009.0,17008.0,0.3057]
[1673036484348,0.2344,17009.0,17008.0,0.3007]
[1673036484558,0.2344,17009.0,17008.0,0.3057]
[1673036486558,0.2344,17009.0,17008.0,0.005]
[1673036486880,0.351,17009.0,17008.0,0.005]
[1673036487081,0.881,17009.0,17005.0,0.3007]
[1673036487298,0.3523,17006.0,17005.0,0.3007]
[1673036488244,0.3523,17006.0,17005.0,0.4407]
[1673036488449,0.3523,17006.0,17005.0,0.3007]
[1673036488654,0.3533,17006.0,17005.0,0.4407]
[1673036488872,0.8835,17006.0,17005.0,0.4407]
[1673036490350,0.8835,17006.0,17005.0,0.4417]
[1673036490767,0.9025,17006.0,17005.0,0.3107]
[1673036492571,0.9025,17006.0,17005.0,0.01]
[1673036494665,1.4951,17006.0,17005.0,0.01]
[1673036494871,1.7958,17006.0,17005.0,0.01]
[1673036495083,2.3248,17006.0,17002.0,0.3007]
[1673036495291,0.2356,17003.0,17002.0,0.3007]
[1673036496350,0.2386,17003.0,17002.0,0.3007]
[1673036497711,0.2386,17003.0,17002.0,0.6014]
[1673036497931,0.1208,17003.0,17002.0,0.6014]
[1673036499286,0.1208,17003.0,17002.0,0.3007]
[1673036499598,0.2386,17003.0,17002.0,0.3007]
[1673036502016,2.0787,17003.0,16999.0,0.3116]
[1673036502227,0.3523,17000.0,16996.0,0.6014]
[1673036502435,0.1178,17000.0,16998.0,0.3007]
[1673036502653,0.1178,17000.0,16999.0,0.2]
[1673036502870,0.1178,17000.0,16999.0,0.339]
[1673036503392,0.1198,17000.0,16999.0,0.2]
[1673036503811,0.1198,17000.0,16998.0,0.4397]
[1673036504015,0.1206,17000.0,16999.0,0.139]
[1673036504224,0.3559,17000.0,16999.0,0.139]
[1673036504971,0.3559,17000.0,16999.0,0.239]
[1673036505283,0.3559,17000.0,16999.0,0.139]
[1673036505696,0.3919,17000.0,16999.0,0.004]
[1673036506017,0.3519,17000.0,16998.0,0.3007]
[1673036506219,0.1562,17000.0,16999.0,0.01]
[1673036506428,0.392,17000.0,16999.0,0.01]
[1673036506756,0.392,17000.0,16999.0,0.11]
[1673036506966,0.9221,17000.0,16999.0,0.01]
[1673036509370,1.5147,17000.0,16999.0,0.01]
[1673036509586,2.0448,17000.0,16999.0,0.01]
[1673036509788,2.0447,17000.0,16996.0,0.3007]
[1673036509999,0.3523,16997.0,16996.0,0.3007]
[1673036510742,0.3523,16997.0,16996.0,0.3687]
[1673036511794,0.3523,16997.0,16995.0,0.3007]
[1673036512008,0.003,16997.0,16996.0,0.068]
[1673036512209,0.3553,16997.0,16996.0,0.068]
[1673036512421,0.238,16997.0,16996.0,0.068]
[1673036512628,0.1202,16997.0,16996.0,0.068]
[1673036512953,0.1652,16997.0,16996.0,0.01]
[1673036517262,0.048,16997.0,16996.0,0.01]
[1673036519057,0.1655,16997.0,16996.0,0.01]
[1673036520842,0.1167,16996.0,16995.0,0.6014]
[1673036521047,0.2345,16996.0,16995.0,0.6014]
[1673036521679,0.2345,16996.0,16995.0,0.9014]
[1673036521988,0.1178,16997.0,16995.0,0.9014]
[1673036522207,0.1178,16999.0,16995.0,1.0192]
[1673036522411,0.1178,16999.0,16998.0,0.6014]
[1673036522829,0.234,16999.0,16998.0,0.6014]
[1673036523677,0.3538,16999.0,16998.0,0.6014]
[1673036524095,0.3518,16999.0,16998.0,0.6014]
[1673036524415,0.3928,16999.0,16998.0,0.6114]
[1673036528204,0.3928,16999.0,16998.0,0.3107]
[1673036528935,0.3928,16999.0,16998.0,0.01]
[1673036535139,0.3928,16999.0,16998.0,0.0001]
[1673036535356,0.3928,16999.0,16994.0,0.4007]
[1673036535565,0.2349,16995.0,16994.0,0.4007]
[1673036536407,0.2349,16995.0,16994.0,0.5367]
[1673036537577,0.2389,16995.0,16994.0,0.5367]
[1673036537984,0.2379,16995.0,16994.0,0.4637]
[1673036541452,0.1201,16995.0,16994.0,0.4637]
[1673036550496,0.2379,16995.0,16994.0,0.4637]
[1673036559855,0.3557,16995.0,16994.0,0.063]
[1673036568262,0.3557,16995.0,16991.0,0.1]
[1673036568263,1.1865,16995.0,16991.0,0.1]
[1673036568475,0.3517,16992.0,16989.0,0.2]
[1673036568684,0.2351,16990.0,16989.0,0.2]
[1673036569631,0.2351,16990.0,16989.0,0.5157]
[1673036570053,0.2351,16990.0,16989.0,0.5007]
[1673036570258,0.2511,16990.0,16989.0,0.5157]
[1673036571745,0.2511,16990.0,16989.0,0.3157]
[1673036571957,0.3677,16990.0,16989.0,0.5157]
[1673036573225,0.3677,16990.0,16989.0,0.3157]
[1673036574473,0.4637,16990.0,16989.0,0.3077]
[1673036575525,0.4637,16990.0,16989.0,0.007]
[1673036575745,0.9934,16990.0,16989.0,0.007]
[1673036576258,0.9934,16990.0,16986.0,0.3007]
[1673036576469,0.2346,16987.0,16986.0,0.6014]
[1673036577105,0.2346,16987.0,16986.0,0.2014]
[1673036577518,0.2396,16987.0,16986.0,0.2354]
[1673036577725,0.2396,16987.0,16986.0,0.034]
[1673036578582,0.6569,16987.0,16986.0,0.034]
[1673036578782,0.3562,16987.0,16986.0,0.034]
[1673036579098,0.3562,16987.0,16985.0,0.5007]
[1673036579315,0.005,16987.0,16986.0,0.034]
[1673036579527,0.3522,16987.0,16985.0,0.5007]
[1673036579730,0.3529,16986.0,16985.0,0.5007]
[1673036580048,0.1171,16988.0,16985.0,0.5007]
[1673036580358,0.005,16987.0,16986.0,0.034]
[1673036580988,0.005,16986.0,16985.0,0.8354]
[1673036581409,0.1178,16987.0,16985.0,0.8014]
[1673036581627,0.1608,16987.0,16986.0,0.005]
[1673036582471,0.1178,16987.0,16985.0,0.8014]
[1673036582677,0.005,16986.0,16985.0,0.8354]
[1673036582902,0.1178,16987.0,16985.0,0.8014]
[1673036583105,0.1608,16987.0,16986.0,0.005]
[1673036583427,0.1178,16987.0,16985.0,0.8014]
[1673036583631,0.005,16986.0,16985.0,0.8354]
[1673036583946,0.1178,16987.0,16985.0,0.8014]
[1673036584153,0.1608,16987.0,16986.0,0.005]
[1673036584477,0.1603,16987.0,16986.0,0.005]
[1673036585415,0.005,16986.0,16985.0,0.8354]
[1673036585632,0.1228,16986.0,16985.0,0.8354]
[1673036585943,0.1178,16986.0,16985.0,0.8014]
[1673036586364,0.1228,16986.0,16985.0,0.8354]
[1673036593508,0.005,16986.0,16985.0,0.8354]
[1673036593725,0.005,16986.0,16985.0,1.1354]
[1673036594568,0.117,16989.0,16985.0,1.2531]
[1673036594779,0.117,16989.0,16988.0,0.3007]
[1673036595309,0.1175,16992.0,16988.0,0.7192]
[1673036595508,0.3175,16992.0,16990.0,0.3007]
[1673036596354,0.1175,16992.0,16990.0,0.3007]
[1673036596978,0.1175,16992.0,16990.0,0.6014]
[1673036597194,0.1178,16991.0,16990.0,0.6014]
[1673036597404,0.1178,16991.0,16990.0,0.6084]
[1673036597823,0.1178,16991.0,16990.0,0.6014]
[1673036598140,0.1178,16991.0,16990.0,0.6084]
[1673036598462,0.2248,16991.0,16990.0,0.6084]
[1673036603817,0.2243,16991.0,16990.0,0.3077]
[1673036604552,0.3412,16991.0,16990.0,0.007]
[1673036607083,0.6419,16991.0,16990.0,0.007]
[1673036608030,0.1178,16990.0,16988.0,0.3007]
[1673036608240,0.117,16989.0,16988.0,0.3007]
[1673036609920,0.167,16989.0,16988.0,0.3067]
[1673036611492,0.2837,16989.0,16988.0,0.006]
[1673036613710,0.5844,16989.0,16988.0,0.006]
[1673036621060,1.2323,16989.0,16984.0,0.4007]
[1673036621264,0.2356,16985.0,16984.0,0.4007]
[1673036621909,0.2356,16985.0,16984.0,0.4637]
[1673036623163,0.2476,16985.0,16984.0,0.4637]
[1673036623374,0.1298,16985.0,16984.0,0.4637]
[1673036623588,0.1278,16985.0,16984.0,0.4637]
[1673036634732,0.1278,16985.0,16984.0,0.3637]
[1673036653030,0.1574,16985.0,16984.0,0.3637]
[1673036657024,0.1471,16988.0,16984.0,1.0995]
[1673036657341,0.1471,16988.0,16987.0,0.3007]
[1673036658385,0.1571,16988.0,16987.0,0.3007]
[1673036658921,0.2501,16988.0,16987.0,0.3087]
[1673036659131,0.103,16988.0,16987.0,0.7568]
[1673036659329,0.103,16988.0,16987.0,1.3454]
[1673036659751,0.103,16988.0,16987.0,1.6454]
[1673036660491,0.0399,16988.0,16987.0,1.6445]
[1673036661441,0.1474,16990.0,16987.0,1.3365]
[1673036661657,0.002,16988.0,16987.0,1.0908]
[1673036661868,0.1474,16990.0,16987.0,1.3365]
[1673036662075,0.1474,16990.0,16989.0,0.3007]
[1673036662604,0.1494,16990.0,16989.0,0.3007]
[1673036663344,0.1944,16990.0,16989.0,0.3067]
[1673036664072,0.1944,16990.0,16989.0,0.006]
[1673036664285,0.4892,16990.0,16989.0,0.006]
[1673036665009,0.7899,16990.0,16989.0,0.006]
[1673036665224,1.0899,16990.0,16989.0,0.006]
[1673036666166,1.0844,16989.0,16986.0,0.1]
[1673036666372,0.2935,16987.0,16986.0,0.1]
[1673036667335,0.2935,16987.0,16985.0,0.1]
[1673036667541,0.146,16986.0,16985.0,0.1]
[1673036668694,0.159,16986.0,16985.0,0.152]
[1673036669103,0.151,16986.0,16985.0,0.131]
[1673036677421,0.2984,16986.0,16985.0,0.031]
[1673036677844,0.2398,16986.0,16985.0,0.031]
[1673036678048,0.2398,16986.0,16985.0,0.131]
[1673036678886,0.3576,16986.0,16985.0,0.031]
[1673036680157,0.6583,16986.0,16985.0,0.031]
[1673036680353,0.6583,16986.0,16982.0,0.3007]
[1673036680558,0.1169,16983.0,16982.0,0.3007]
[1673036681622,0.2345,16983.0,16982.0,0.3007]
[1673036681818,0.2485,16983.0,16982.0,0.3237]
[1673036682030,0.4485,16983.0,16982.0,0.3237]
[1673036682245,0.4485,16983.0,16982.0,0.023]
[1673036682563,0.5665,16983.0,16982.0,0.023]
[1673036682775,1.3975,16983.0,16982.0,0.023]
[1673036682986,1.3957,16983.0,16982.0,0.023]
[1673036683197,1.3957,16983.0,16979.0,0.4007]
[1673036683507,1.167,16983.0,16982.0,0.002]
[1673036683719,1.5226,16983.0,16979.0,0.4007]
[1673036683939,0.4544,16983.0,16982.0,0.002]
[1673036684130,0.6904,16983.0,16982.0,0.002]
[1673036684346,0.6904,16983.0,16979.0,0.4037]
[1673036684555,0.235,16980.0,16979.0,0.4037]
[1673036685607,0.235,16980.0,16979.0,0.4007]
[1673036686237,0.37,16980.0,16979.0,0.3007]
[1673036690342,0.135,16980.0,16979.0,0.3007]
[1673036690550,0.4874,16980.0,16979.0,0.3007]
[1673036691911,0.4894,16980.0,16979.0,0.3007]
[1673036692337,0.3724,16980.0,16979.0,0.3007]
[1673036692868,0.3714,16980.0,16979.0,0.3007]
[1673036693912,0.136,16980.0,16979.0,0.3007]
[1673036694117,0.3712,16980.0,16979.0,0.6014]
[1673036705682,0.2529,16980.0,16979.0,0.6014]
[1673036711463,0.254,16980.0,16979.0,0.6014]
[1673036715240,0.254,16980.0,16979.0,1.19]
[1673036715559,0.136,16980.0,16979.0,1.49]
[1673036718190,0.136,16980.0,16979.0,1.608]
[1673036719122,0.1168,16984.0,16979.0,1.608]
[1673036719344,0.1168,16984.0,16983.0,0.3007]
[1673036719554,0.1168,16984.0,16983.0,0.5007]
[1673036720395,0.2528,16984.0,16983.0,0.5017]
[1673036725227,0.3708,16984.0,16983.0,0.2]
[1673036726695,0.3708,16984.0,16982.0,0.85246813]
[1673036727006,0.1174,16983.0,16982.0,0.26386813]
[1673036727211,0.118,16982.0,16981.0,0.5886]
[1673036727422,0.235,16982.0,16980.0,0.2]
[1673036727638,0.117,16981.0,16980.0,0.2]
[1673036728274,0.117,16981.0,16980.0,0.7886]
[1673036728798,0.4177,16981.0,16980.0,0.7886]
[1673036729004,0.5527,16981.0,16980.0,0.7896]
[1673036729843,0.252,16981.0,16980.0,0.7896]
[1673036732158,0.252,16981.0,16980.0,0.5896]
[1673036734369,0.5527,16981.0,16980.0,0.001]
[1673036735940,0.6707,16981.0,16980.0,0.001]
[1673036741625,0.252,16981.0,16980.0,0.001]
[1673036744571,0.135,16981.0,16980.0,0.3017]
[1673036745517,0.135,16981.0,16980.0,0.3007]
[1673036747930,0.135,16981.0,16979.0,0.1]
[1673036748460,0.253,16981.0,16979.0,0.1]
[1673036748985,0.1173,16980.0,16979.0,0.1]
[1673036750247,0.2523,16980.0,16979.0,0.1]
[1673036751621,0.2518,16980.0,16979.0,0.1]
[1673036752662,0.2518,16980.0,16979.0,0.4007]
[1673036754358,0.2518,16980.0,16979.0,0.9893]
[1673036756033,0.135,16980.0,16979.0,0.9893]
[1673036761601,0.135,16980.0,16979.0,1.1061]
[1673036761812,0.135,16980.0,16979.0,0.9893]
[1673036766441,0.3703,16980.0,16979.0,0.9893]
[1673036769067,0.3703,16980.0,16979.0,0.9913]
[1673036771269,0.3703,16980.0,16979.0,0.9353]
[1673036771480,0.2523,16980.0,16979.0,0.9353]
[1673036771687,0.2523,16980.0,16979.0,0.046]
[1673036772324,0.2533,16980.0,16979.0,0.045]
[1673036772854,0.2523,16980.0,16979.0,0.046]
[1673036773378,0.2523,16980.0,16979.0,0.044]
[1673036773589,0.2533,16980.0,16979.0,0.045]
[1673036773810,0.2533,16980.0,16979.0,0.044]
[1673036774016,0.2533,16980.0,16979.0,0.045]
[1673036776437,0.2533,16980.0,16979.0,0.101]
[1673036777384,0.3705,16980.0,16979.0,0.001]
[1673036778536,0.3705,16980.0,16975.0,0.2]
[1673036778537,0.7893,16980.0,16975.0,0.2]
[1673036778745,0.3007,16977.0,16976.0,0.5886]
[1673036778956,0.4187,16977.0,16976.0,0.5886]
[1673036779269,0.5367,16977.0,16975.0,0.2]
[1673036779590,0.3538,16976.0,16975.0,0.011]
[1673036780220,0.3538,16976.0,16973.0,0.7886]
[1673036780527,0.1169,16974.0,16973.0,0.7886]
[1673036780947,0.118,16975.0,16973.0,0.7886]
[1673036781158,0.118,16975.0,16974.0,0.5007]
[1673036781579,0.118,16975.0,16974.0,1.0893]
[1673036783158,0.253,16975.0,16974.0,1.0903]
[1673036783784,0.253,16975.0,16974.0,0.001]
[1673036783995,0.3699,16975.0,16974.0,0.001]
[1673036786108,0.3699,16975.0,16973.0,0.2]